Cogmind - Beta 12 @@@ ROGUE MODE // 2023.08.28 @ 23:27:05 Player: art-hropod Result: Destroyed by H-71 Marshal with Heavy Mass Driver Performance ------------- Evolutions (7) 3500 Regions Visited (12) 2400 Robots Destroyed (70) 350 Value Destroyed (1843) 1843 Prototype IDs (6) 120 Alien Tech Used (0) 0 Bonus (555) 555 TOTAL SCORE: 8768 Bonus ------- High Alert Combat Kills 55 Entered DSFs 500 Cogmind --------- Core Integrity 0/1300 Matter 156/300 Energy 10/100 System Corruption 0% Temperature Cool (2) Movement Flying (40) Location -3/Research Parts ------- > --- POWER (2) -------- (None) > --- PROPULSION (8) --- Q-thruster > --- UTILITY (9) ------ Advanced Visual Processing Unit Advanced ECM Suite Improved Hacking Suite > --- WEAPON (2) ------- (None) > --- INVENTORY (5) ---- Particle Reactor Q-thruster Advanced Targeting Computer Peak State ------------ > --- POWER ------------ Light Antimatter Reactor > --- PROPULSION ------- Improved Flight Unit Impulse Thruster Field Propulsion Array Impulse Thruster Array Impulse Thruster Array > --- UTILITY ---------- Coolant Injector Advanced Visual Processing Unit Improved Signal Interpreter Improved Terrain Scanner Advanced ECM Suite Hacking Suite Improved Hacking Suite Improved Hacking Suite Improved Hacking Suite > --- WEAPON ----------- Railgun Power Maul > --- INVENTORY -------- Particle Reactor Improved Flight Unit Q-thruster Improved Proton Missile Launcher [Rating: 111] Favorites ----------- Power Ion Engine Engine Ion Engine Power Core Micro Nuclear Core Reactor Light Antimatter Reactor Propulsion Improved Flight Unit Treads Light Treads Leg Aluminum Leg Hover Unit Improved Gyrokinetic Inverter Flight Unit Improved Flight Unit Utility Hacking Suite Device Advanced Heat Sink Storage Large Storage Unit Processor Advanced Visual Processing Unit Hackware Hacking Suite Weapon Power Maul Energy Gun EM Pulse Gun Ballistic Gun Heavy Assault Rifle Launcher Rocket Launcher Impact Weapon Power Maul Build | -11 -10 -10 -9 -8 -7 -6 -6 -6 -5 -5 -4 -3 ------- Run | Jun Mat Min Mat Mat Fac Fac Low Low Fac DSF Fac Res Slots Evolved 14 | . . . 2 2 2 2 . . 2 . 2 2 Power 1 | . . . . 1 . . . . . . . . Propulsion 6 | . . . 2 1 . 1 . . . . 1 1 Utility 7 | . . . . . 2 1 . . 2 . 1 1 Weapon . | . . . . . . . . . . . . . Parts Attached 126 | 6 7 1 32 6 12 22 9 1 4 3 11 12 Power 21 | 1 1 1 4 1 2 5 1 . . . 3 2 Engine 7 | 1 1 1 3 1 . . . . . . . . Core 11 | . . . 1 . 2 5 1 . . . 2 . Reactor 3 | . . . . . . . . . . . 1 2 Propulsion 44 | 2 . . 14 1 5 8 3 . 1 1 4 5 Treads 4 | 2 . . 2 . . . . . . . . . Leg 12 | . . . 10 1 . . . . 1 . . . Wheel . | . . . . . . . . . . . . . Hover 1 | . . . . . . . . . . . 1 . Flight 27 | . . . 2 . 5 8 3 . . 1 3 5 Utility 27 | 1 4 . 2 2 5 3 . . 3 2 3 2 Device 14 | . 2 . 1 1 4 2 . . 2 . . 2 Storage 6 | 1 2 . . . 1 . . . . 2 . . Processor 2 | . . . . . . . . . 1 . 1 . Hackware 5 | . . . 1 1 . 1 . . . . 2 . Protection . | . . . . . . . . . . . . . Artifact . | . . . . . . . . . . . . . Weapon 34 | 2 2 . 12 2 . 6 5 1 . . 1 3 Energy Gun 4 | 2 . . 2 . . . . . . . . . Energy Cannon . | . . . . . . . . . . . . . Ballistic Gun 3 | . 2 . . . . . . . . . . 1 Ballistic Cannon . | . . . . . . . . . . . . . Launcher 8 | . . . 3 . . 2 2 . . . . 1 Special Weapon . | . . . . . . . . . . . . . Impact Weapon 19 | . . . 7 2 . 4 3 1 . . 1 1 Slashing Weapon . | . . . . . . . . . . . . . Piercing Weapon . | . . . . . . . . . . . . . Special Melee Weapon . | . . . . . . . . . . . . . Unidentified Prototypes 3 | . . . 1 . . 1 . . . . 1 . Parts Lost 46 | . . . 15 2 . 3 5 1 . 2 2 16 Power 8 | . . . 2 1 . 1 2 . . . . 2 Propulsion 22 | . . . 8 1 . 1 3 . . 2 2 5 Utility 10 | . . . 2 . . 1 . 1 . . . 6 Weapon 6 | . . . 3 . . . . . . . . 3 Highest Loss Streak 12 | . . . 9 1 . 3 4 1 . 2 2 12 To Critical Strikes 1 | . . . 1 . . . . . . . . . Average Slot Usage (%) 88 | . 94 100 89 90 98 99 96 67 82 70 70 67 Engine 5 | . 14 14 6 11 7 . . . . . . . Core 4 | . . . 4 . 6 13 12 6 5 3 3 . Treads 7 | . 28 28 8 . . . . . . . . . Leg 11 | . . . 29 43 . . . . 5 1 . . Flight 13 | . . . . . 38 40 38 26 23 19 16 17 Device 8 | . 9 14 2 . 13 17 13 6 17 17 13 9 Storage 8 | . 14 14 11 9 8 6 6 6 5 5 . . Processor 1 | . . . . . . . . . 5 5 6 9 Hackware 8 | . . . 6 7 7 8 13 13 11 11 19 18 Energy Gun 2 | . 11 . 1 . . . . . . . . . Ballistic Gun 4 | . 16 28 3 . . . . . . . . 1 Impact Weapon 9 | . . . 14 17 15 12 11 6 5 3 2 2 Naked Turns . | . . . . . . . . . . . . . Heaviest Build 36 | 14 32 32 32 36 25 31 29 23 21 21 15 31 Greatest Support 60 | 40 40 40 60 55 30 37 32 21 21 21 22 59 Greatest Overweight (x) 7 | . . . 7 . . 1 . 1 . . . 1 Average Overweight (x) . | . . . . . . . . . . . . . Largest Inventory Capacity 15 | 8 15 15 15 15 15 8 8 8 8 10 8 5 Average Capacity 11 | 6 14 15 15 15 9 8 8 8 8 8 5 5 Most Carried 15 | 6 15 15 15 15 14 8 8 7 6 8 8 5 Average Carried 9 | 3 10 14 13 14 7 7 6 6 3 6 4 4 Final Capacity 15 | 8 15 15 15 15 8 8 8 8 8 8 5 5 Final Carried 15 | 6 15 15 14 15 7 8 7 7 4 8 5 3 Class Distribution -------------------- 36% | Mutant 24% | Hacker-Sprinter 19% | Scavenger-Mutant 10% | Sprinter 9% | Hacker-Mutant Dominant Class ---------------- Mutant | -10/Materials Mutant | -10/Mines Scavenger-Mutant | -9/Materials Scavenger-Mutant | -8/Materials Sprinter | -7/Factory Sprinter | -6/Factory Hacker-Sprinter | -6/Lower Caves Hacker-Sprinter | -6/Lower Caves Hacker-Sprinter | -5/Factory Hacker-Sprinter | -5/DSF Hacker-Mutant | -4/Factory Hacker-Sprinter | -3/Research Resources | -11 -10 -10 -9 -8 -7 -6 -6 -6 -5 -5 -4 -3 ----------- Run | Jun Mat Min Mat Mat Fac Fac Low Low Fac DSF Fac Res Matter Collected 1663 | 234 180 52 412 60 . 327 160 30 . . 11 197 Remotely . | . . . . . . . . . . . . . Salvage Created 2762 | . 357 100 1000 699 . 303 138 53 . . 11 101 Parts 113 | . 27 7 44 25 . 2 7 . . . . 1 Haulers Intercepted 9 | . 1 . 3 1 . 3 . . . . . 1 Recyclers Shooed 4 | . 1 1 2 . . . . . . . . . Parts Field Recycled . | . . . . . . . . . . . . . Retrieved Matter . | . . . . . . . . . . . . . Parts Self-Destructed 4 | . . . . . . . 4 . . . . . Prevented 1 | . . . . . . . 1 . . . . . Kills | -11 -10 -10 -9 -8 -7 -6 -6 -6 -5 -5 -4 -3 ------- Run | Jun Mat Min Mat Mat Fac Fac Low Low Fac DSF Fac Res Combat Hostiles Destroyed 45 | . 7 . 23 10 . . 4 1 . . . . Melee 9 | . . . 6 3 . . . . . . . . Guns 9 | . 7 . 2 . . . . . . . . . AOE 13 | . . . 10 . . . 3 . . . . . Classes Destroyed 13 | . 4 2 3 3 . . 1 . . . . . Worker 4 | . 1 1 2 . . . . . . . . . Builder 2 | . . . . 1 . . . . . . 1 . Tunneler 2 | . . 1 . 1 . . . . . . . . Hauler 9 | . 1 . 3 1 . 3 . . . . . 1 Recycler 5 | . . 1 2 2 . . . . . . . . Operator 2 | . 1 . 1 . . . . . . . . . Watcher 1 | . . . . 1 . . . . . . . . Swarmer 9 | . . . 6 . . . 3 . . . . . Grunt 24 | . 7 . 12 5 . . . . . . . . Brawler 1 | . . . 1 . . . . . . . . . Duelist 1 | . . . . 1 . . . . . . . . Sentry 9 | . . . 4 4 . . . 1 . . . . Hunter 1 | . . . . . . . 1 . . . . . Best Kill Streak 5 | . 4 2 5 5 . 1 4 1 . . 1 1 Combat Bots Only 5 | . 4 . 5 4 . . 4 1 . . . . Max Kills in Single Turn 4 | . 1 1 4 1 . 1 1 1 . . 1 1 Gunslinging . | . . . . . . . . . . . . . Exploded 4 | . . . 4 . . . 1 . . . . . Melee 1 | . . . 1 1 . . . . . . . . Uniques/NPCs Destroyed . | . . . . . . . . . . . . . Combat | -11 -10 -10 -9 -8 -7 -6 -6 -6 -5 -5 -4 -3 -------- Run | Jun Mat Min Mat Mat Fac Fac Low Low Fac DSF Fac Res Damage Taken 6412 | . 475 . 1492 369 . 294 507 193 . 353 177 2552 Core 2266 | . 51 . 263 46 . 98 127 56 . 218 78 1329 Absorbed by Shields 12 | . . . . . . . . . . . 12 . Regen/Repaired (Parts) 53 | . . . 41 . . 12 . . . . . . Core Remaining (%) 80 | 100 . 79 34 91 100 . . 66 . 78 93 . Volleys Fired 79 | 1 26 5 35 . . 2 8 . . . . 2 Largest 2 | 2 2 2 2 . . 1 1 . . . . 1 Hottest 90 | 90 90 46 46 . . 43 43 . . . . 43 Shots Fired 123 | 2 52 10 47 . . 2 8 . . . . 2 Gun 106 | 2 52 10 41 . . . . . . . . 1 Cannon . | . . . . . . . . . . . . . Launcher 17 | . . . 6 . . 2 8 . . . . 1 Special . | . . . . . . . . . . . . . Kinetic 69 | . 32 10 26 . . . . . . . . 1 Thermal 11 | 1 10 . . . . . . . . . . . Explosive 6 | . . . 6 . . . . . . . . . Electromagnetic 37 | 1 10 . 15 . . 2 8 . . . . 1 Robot Hit Streak 15 | 1 9 15 9 . . . . . . . . 8 Robot Miss Streak 4 | 1 3 . 4 . . . . . . . . . Penetration Max . | . . . . . . . . . . . . . Secondary Targets 1 | . 1 . . . . . . . . . . . Max Gunslinging Chain 1 | . 1 . . . . . . . . . . . Shots Hit Robots 145 | 1 34 9 58 26 . 6 4 4 . . 1 2 Core Hits 59 | 1 16 4 24 4 . 1 5 1 . . . 3 Critical Kills 1 | . . . . 1 . . . . . . . . Critical Parts Destroyed 18 | . . . 4 8 . 1 2 2 . . . 1 Critical Strikes 19 | . . . 4 9 . 1 2 2 . . . 1 Smash 19 | . . . 4 9 . 1 2 2 . . . 1 Melee Attacks 127 | . . . 39 30 6 24 10 5 . . 5 8 Impact 127 | . . . 39 30 6 24 10 5 . . 5 8 Slashing . | . . . . . . . . . . . . . Piercing . | . . . . . . . . . . . . . Sneak Attacks 19 | . . . 7 7 . 3 . . . . 1 1 Combat Hostiles . | . . . . . . . . . . . . . Follow-up Attacks 8 | . . . 1 5 . 1 1 . . . . . Damage Inflicted 5842 | 13 504 145 2094 1501 . 479 608 148 . . 98 252 Guns 949 | 13 504 145 287 . . . . . . . . . Cannons . | . . . . . . . . . . . . . Explosions 1203 | . . . 697 . . . 355 . . . . 151 Melee 3690 | . . . 1110 1501 . 479 253 148 . . 98 101 Ramming . | . . . . . . . . . . . . . Kinetic 607 | . 325 145 137 . . . . . . . . . Thermal 323 | 13 114 . 106 . . . 90 . . . . . Explosive 591 | . . . 591 . . . . . . . . . Electromagnetic 631 | . 65 . 150 . . . 265 . . . . 151 Impact 3690 | . . . 1110 1501 . 479 253 148 . . 98 101 Slashing . | . . . . . . . . . . . . . Piercing . | . . . . . . . . . . . . . Highest Corruption 8 | . . . 8 2 . 5 5 5 . . 5 . Average Corruption 4 | . . . 8 2 . 3 5 5 . . 5 . Corruption Purged . | . . . . . . . . . . . . . Corruption Blocked . | . . . . . . . . . . . . . Effects 33 | . . . 6 3 . 3 7 7 . . 7 . Message Errors 9 | . . . 2 2 . 1 1 1 . . 2 . Matter Fused 11 | . . . 1 . . 2 3 3 . . 2 . Heat Flow Errors 5 | . . . 3 . . . 2 . . . . . Energy Discharges 4 | . . . . 1 . . . 1 . . 2 . Parts Fused 2 | . . . . . . . 1 1 . . . . Data Loss (minor) 1 | . . . . . . . . . . . 1 . Alerts 1 | . . . . . . . . 1 . . . . Overload Shots . | . . . . . . . . . . . . . Overflow Damage 1648 | . . . 311 679 . 251 149 79 . . 78 101 Projectiles . | . . . . . . . . . . . . . Explosions 42 | . . . 19 . . . 23 . . . . . Melee 1606 | . . . 292 679 . 251 126 79 . . 78 101 Knockbacks 12 | . . . 4 5 . . 2 . . . 1 . Impact 11 | . . . 4 4 . . 2 . . . 1 . Kinetic . | . . . . . . . . . . . . . Secondary 1 | . . . . 1 . . . . . . . . Self-Inflicted Damage 40 | . . . 23 . . . . . . . . 17 Shots 2 | . . . 1 . . . . . . . . 1 Rammed . | . . . . . . . . . . . . . Targets Rammed . | . . . . . . . . . . . . . Kicked . | . . . . . . . . . . . . . Crushed . | . . . . . . . . . . . . . Highest Temperature 278 | 30 198 . 276 4 . 278 192 . . . . 6 Average Temperature 92 | 18 92 . 86 4 . 104 80 . . . . 4 Received Heat Transfer 1353 | . 210 . 534 171 . 30 162 60 . . 21 165 Effects 1 | . . . . . . 1 . . . . . . Energy Bleed 1 | . . . . . . 1 . . . . . . Siege Activations . | . . . . . . . . . . . . . Robots Corrupted 1 | . . . 1 . . . . . . . . . Combat Hostiles . | . . . . . . . . . . . . . Parts Fried 27 | . . . 10 11 . . 3 . . . 2 1 Impact Corruptions 53 | . . . 15 23 . 6 3 2 . . 3 1 Robots Melted . | . . . . . . . . . . . . . Combat Hostiles . | . . . . . . . . . . . . . Parts Melted . | . . . . . . . . . . . . . Heat Transferred 570 | 37 333 . 100 . . . 100 . . . . . Parts Sabotaged . | . . . . . . . . . . . . . Parts Stolen 1 | . . . . . . . 1 . . . . . Parts Stripped . | . . . . . . . . . . . . . Power Chain Reactions 2 | . . . 1 . . . 1 . . . . . Missiles Intercepted . | . . . . . . . . . . . . . Alert | -11 -10 -10 -9 -8 -7 -6 -6 -6 -5 -5 -4 -3 ------- Run | Jun Mat Min Mat Mat Fac Fac Low Low Fac DSF Fac Res Peak Influence 545 | . 168 80 410 545 162 282 . . 137 95 138 345 Initial 172 | . . 65 31 172 156 79 . . 119 95 39 66 Average 159 | . 84 71 201 328 159 160 . . 125 85 74 127 Maximum Alert Level 2 | . . . 2 2 . 1 . . . . . 1 Low Security (%) 71 | 100 100 100 58 18 100 62 . . 100 100 100 77 Level 1 23 | . . . 30 60 . 37 . . . . . 22 Level 2 5 | . . . 11 21 . . . . . . . . Level 3 . | . . . . . . . . . . . . . Level 4 . | . . . . . . . . . . . . . Level 5 . | . . . . . . . . . . . . . High Security . | . . . . . . . . . . . . . Max Security . | . . . . . . . . . . . . . Squads Dispatched 18 | . 3 . 3 2 . 2 . . . 1 5 2 Investigation 8 | . 2 . 1 . . 1 . . . . 3 1 Extermination 1 | . . . . . . . . . . . 1 . Reinforcement 9 | . 1 . 2 2 . 1 . . . 1 1 1 Assault . | . . . . . . . . . . . . . Garrison . | . . . . . . . . . . . . . Intercept . | . . . . . . . . . . . . . Searches Triggered . | . . . . . . . . . . . . . Construction Impeded 1 | . . . . . . . . . . . 1 . Haulers Reinforced . | . . . . . . . . . . . . . Active Scanning Responses . | . . . . . . . . . . . . . Cargo Convoy Interrupts . | . . . . . . . . . . . . . Stealth | -11 -10 -10 -9 -8 -7 -6 -6 -6 -5 -5 -4 -3 --------- Run | Jun Mat Min Mat Mat Fac Fac Low Low Fac DSF Fac Res Distress Signals 8 | . 2 . 2 . . 1 . . . . . 3 Communications Jammed . | . . . . . . . . . . . . . Distress Signals . | . . . . . . . . . . . . . Times Spotted 149 | . 19 . 34 14 . 11 21 4 . 3 5 38 Peak Tracking Total 22 | . 6 . 7 5 . 5 6 3 . 3 5 22 Tactical Retreats 23 | . 2 . 3 1 . 5 5 2 . . . 5 Traps | -11 -10 -10 -9 -8 -7 -6 -6 -6 -5 -5 -4 -3 ------- Run | Jun Mat Min Mat Mat Fac Fac Low Low Fac DSF Fac Res Traps Triggered 15 | . 2 . . 1 1 4 . . . . 4 3 Indirectly 1 | . . . . . . . . . . . . 1 Trap Hack Attempts . | . . . . . . . . . . . . . Triggered . | . . . . . . . . . . . . . Disarmed . | . . . . . . . . . . . . . Reprogrammed . | . . . . . . . . . . . . . Reused . | . . . . . . . . . . . . . Traps Extracted . | . . . . . . . . . . . . . Installed . | . . . . . . . . . . . . . Triggered . | . . . . . . . . . . . . . Machines | -11 -10 -10 -9 -8 -7 -6 -6 -6 -5 -5 -4 -3 ---------- Run | Jun Mat Min Mat Mat Fac Fac Low Low Fac DSF Fac Res Machines Disabled 6 | . 2 . 3 . . 1 . . . . . . Max in Single Turn 1 | . 1 . 1 . . 1 . . . . . . Garrison Access 1 | . . . . . . 1 . . . . . . Machines Repaired . | . . . . . . . . . . . . . Machines Sabotaged . | . . . . . . . . . . . . . Overloaded Fab Kills . | . . . . . . . . . . . . . Hacking | -11 -10 -10 -9 -8 -7 -6 -6 -6 -5 -5 -4 -3 --------- Run | Jun Mat Min Mat Mat Fac Fac Low Low Fac DSF Fac Res Machines Accessed 34 | . 3 . 6 4 . 7 2 1 2 . 5 4 Terminals 23 | . 3 . 4 4 . 4 . 1 2 . 2 3 Fabricators 2 | . . . . . . . . . . . 2 . Repair Stations 3 | . . . 1 . . 1 . . . . . 1 Recycling Units . | . . . . . . . . . . . . . Scanalyzers 3 | . . . 1 . . 1 . . . . 1 . Garrison Access 1 | . . . . . . 1 . . . . . . Total Hacks 77 | . 11 . 15 8 . 20 4 1 2 . 12 4 Successful 45 | . 7 . 9 4 . 8 4 1 2 . 10 . Failed 32 | . 4 . 6 4 . 12 . . . . 2 4 Catastrophic 4 | . . . . 1 . 2 . . . . . 1 Database Lockouts . | . . . . . . . . . . . . . Manual 49 | . 11 . 8 8 . 13 . . 1 . 5 3 Terminals 55 | . 11 . 10 8 . 14 . 1 2 . 6 3 Fabricators 4 | . . . . . . . . . . . 4 . Repair Stations 7 | . . . 3 . . 3 . . . . . 1 Recycling Units . | . . . . . . . . . . . . . Scanalyzers 6 | . . . 2 . . 2 . . . . 2 . Garrison Access 1 | . . . . . . 1 . . . . . . Terminal Hacks 18 | . 3 . 3 1 . 2 4 1 1 . 3 . Record 5 | . . . . . . 1 3 1 . . . . Robot Analysis 2 | . 2 . . . . . . . . . . . Prototype ID Bank 1 | . . . . . . . . . . . 1 . Open Door 1 | . . . . . . . 1 . . . . . Open DSF 1 | . . . . . . . . . 1 . . . Branch Access Points 1 | . . . . . . 1 . . . . . . Fabricator Index 2 | . . . . 1 . . . . . . 1 . Scanalyzer Index 1 | . . . 1 . . . . . . . . . Transport Status 1 | . . . 1 . . . . . . . . . Recall Investigation 1 | . 1 . . . . . . . . . . . Recall Reinforcements 1 | . . . . . . . . . . . 1 . Hauler Manifests 1 | . . . 1 . . . . . . . . . Fabricator Hacks 4 | . . . . . . . . . . . 4 . Load Schematic 2 | . . . . . . . . . . . 2 . Build 2 | . . . . . . . . . . . 2 . Repair Station Hacks 4 | . . . 2 . . 2 . . . . . . Scan Component 2 | . . . 1 . . 1 . . . . . . Repair 2 | . . . 1 . . 1 . . . . . . Recycling Unit Hacks . | . . . . . . . . . . . . . Scanalyzer 4 | . . . 2 . . . . . . . 2 . Insert Component 2 | . . . 1 . . . . . . . 1 . Analyze 2 | . . . 1 . . . . . . . 1 . Garrison Access Hacks 1 | . . . . . . 1 . . . . . . Seal Access 1 | . . . . . . 1 . . . . . . Unauthorized Hacks 14 | . 4 . 2 3 . 3 . . 1 . 1 . Terminals 14 | . 4 . 2 3 . 3 . . 1 . 1 . Botnet 13 | . 3 . 2 3 . 3 . . 1 . 1 . Operators 1 | . 1 . . . . . . . . . . . Fabricators . | . . . . . . . . . . . . . Repair Stations . | . . . . . . . . . . . . . Recycling Units . | . . . . . . . . . . . . . Scanalyzers . | . . . . . . . . . . . . . Garrison Access . | . . . . . . . . . . . . . Data Cores Recovered . | . . . . . . . . . . . . . Used . | . . . . . . . . . . . . . Hacking Detections 27 | . 3 . 5 4 . 6 . . 1 . 4 4 Full Trace Events 3 | . . . . . . . . . . . 3 . Feedback Events . | . . . . . . . . . . . . . Feedback Blocked . | . . . . . . . . . . . . . Robot Schematics Acquired . | . . . . . . . . . . . . . Robots Built . | . . . . . . . . . . . . . Authchips . | . . . . . . . . . . . . . Time . | . . . . . . . . . . . . . Total Robot Build Rating . | . . . . . . . . . . . . . Part Schematics Acquired 2 | . . . 1 . . . . . . . 1 . Parts Built 2 | . . . . . . . . . . . 2 . Authchips . | . . . . . . . . . . . . . Time 116 | . . . . . . . . . . . 116 . Total Part Build Rating 14 | . . . . . . . . . . . 14 . Parts Repaired 2 | . . . 1 . . 1 . . . . . . Time 58 | . . . 32 . . 26 . . . . . . Parts Recycled . | . . . . . . . . . . . . . Recycled Matter . | . . . . . . . . . . . . . Retrieved Matter . | . . . . . . . . . . . . . Retrieved Components . | . . . . . . . . . . . . . Parts Scanalyzed 2 | . . . 1 . . . . . . . 1 . Part Schematics Acquired 2 | . . . 1 . . . . . . . 1 . Parts Damaged 1 | . . . . . . . . . . . 1 . Bothacking | -11 -10 -10 -9 -8 -7 -6 -6 -6 -5 -5 -4 -3 ------------ Run | Jun Mat Min Mat Mat Fac Fac Low Low Fac DSF Fac Res Used RIF Installer . | . . . . . . . . . . . . . Robots Hacked . | . . . . . . . . . . . . . Non-combat . | . . . . . . . . . . . . . Combat . | . . . . . . . . . . . . . Robot Hacks Applied . | . . . . . . . . . . . . . Relay Couplers Released . | . . . . . . . . . . . . . Fabnet Peak Effective % . | . . . . . . . . . . . . . Robots Rewired . | . . . . . . . . . . . . . Allies Hacked . | . . . . . . . . . . . . . Hacks Repelled . | . . . . . . . . . . . . . Allies | -11 -10 -10 -9 -8 -7 -6 -6 -6 -5 -5 -4 -3 -------- Run | Jun Mat Min Mat Mat Fac Fac Low Low Fac DSF Fac Res Total Allies . | . . . . . . . . . . . . . Largest Group . | . . . . . . . . . . . . . Highest-Rated Group . | . . . . . . . . . . . . . Highest-Rated Ally . | . . . . . . . . . . . . . Total Orders . | . . . . . . . . . . . . . Ally Attacks . | . . . . . . . . . . . . . Total Damage . | . . . . . . . . . . . . . Kills . | . . . . . . . . . . . . . Allies Corrupted . | . . . . . . . . . . . . . Allies Melted . | . . . . . . . . . . . . . Intel | -11 -10 -10 -9 -8 -7 -6 -6 -6 -5 -5 -4 -3 ------- Run | Jun Mat Min Mat Mat Fac Fac Low Low Fac DSF Fac Res Robot Analysis Total 2 | . 2 . . . . . . . . . . . Derelict Logs Recovered 4 | . . 1 . . . . 2 1 . . . . Drone Launches . | . . . . . . . . . . . . . Drone Recoveries . | . . . . . . . . . . . . . Exploration | -11 -10 -10 -9 -8 -7 -6 -6 -6 -5 -5 -4 -3 ------------- Run | Jun Mat Min Mat Mat Fac Fac Low Low Fac DSF Fac Res Turns Passed 4154 | 88 602 204 1021 404 71 551 353 250 17 31 269 293 Spaces Moved 5880 | 48 295 116 573 239 65 1441 1131 749 29 60 512 622 Core 13 | 8 . . 1 . . . . . . . . 4 Treads 534 | 40 295 116 83 . . . . . . . . . Legs 728 | . . . 489 239 . . . . . . . . Wheels . | . . . . . . . . . . . . . Hover 41 | . . . . . . . . . . . . 41 Flight 4564 | . . . . . 65 1441 1131 749 29 60 512 577 Fastest Speed 25 | 50 160 160 120 120 28 25 25 31 41 34 31 30 Average Speed 52 | 141 160 160 131 120 28 25 25 31 41 37 33 37 Slowest Speed 400 | 160 160 160 400 120 28 96 31 99 41 41 37 110 Overloaded Moves . | . . . . . . . . . . . . . Propulsion Burnouts . | . . . . . . . . . . . . . Robots Hopped 8 | . . . . . . 4 1 . . . 3 . Cave-ins Triggered . | . . . . . . . . . . . . . Exploration Rate (%) 37 | 3 46 28 39 29 2 37 84 95 1 80 17 23 Regions Visited 12 Branch Regions 3 Pre-discovered Areas 2 | . . 1 . . . . 1 . . . . . Known Exits Taken 3 | . . . . . . 1 . . 1 . 1 . Unknown Exits Taken 8 | 1 1 1 1 1 1 . 1 1 . . . . Scrap Searched 6 | . . 1 . . . . 4 1 . . . . Spaces Dug 35 | . . . . . 6 12 5 . . . 3 9 Terrain Destroyed 81 | . . . 42 . 6 12 9 . . . 3 9 Melee 33 | . . . . . 6 12 5 . . . 3 7 Projectile 2 | . . . . . . . . . . . . 2 AOE 46 | . . . 42 . . . 4 . . . . . Terrain Rammed . | . . . . . . . . . . . . . Walls Destroyed . | . . . . . . . . . . . . . Machines Disabled . | . . . . . . . . . . . . . Actions | -11 -10 -10 -9 -8 -7 -6 -6 -6 -5 -5 -4 -3 --------- Run | Jun Mat Min Mat Mat Fac Fac Low Low Fac DSF Fac Res Total 6564 | 66 374 125 726 307 106 1579 1160 755 33 68 598 667 Wait 154 | . 29 . 26 24 . 69 3 . . . . 3 Move 5852 | 47 294 115 572 238 64 1432 1128 748 28 59 505 622 Hop 8 | . . . . . . 4 1 . . . 3 . Pick Up 93 | 12 14 2 19 9 1 15 1 . 1 3 4 12 Fast Attach 15 | . . . 3 1 . 4 . . . 1 4 2 Attach 67 | 6 4 . 15 4 9 7 3 1 4 . 5 9 Detach 7 | . . . . . . 1 1 1 . 2 2 . Swap 44 | . 3 1 14 1 3 11 6 . . 2 2 1 Drop 50 | . 4 2 6 6 5 12 . . . 1 6 8 Fire 79 | 1 26 5 35 . . 2 8 . . . . 2 Melee 115 | . . . 36 24 6 22 9 5 . . 5 8 Ram . | . . . . . . . . . . . . . Kick . | . . . . . . . . . . . . . Crush . | . . . . . . . . . . . . . Escape Stasis 80 | . . . . . 18 . . . . . 62 . Rewire . | . . . . . . . . . . . . . Trap . | . . . . . . . . . . . . . Miscellaneous . | . . . . . . . . . . . . . Route ------- -11/Junkyard -10/Materials (discovered 2 exits: *Mat / [*Min]) -10/Mines -9/Materials -8/Materials -7/Factory -6/Factory (discovered 2 exits: *Low x2) -6/Lower Caves -6/Lower Caves (discovered 2 exits: *Fac / *Dat) -5/Factory -5/DSF -4/Factory (discovered 2 exits: *Res / Ext) -3/Research History --------- Turn | Location | Event 10 | -11/Junkyard | Discovered new exit (range 15) 89 | -11/Junkyard | Entered Materials 314 | -10/Materials | Build established: Mutant 359 | -10/Materials | Discovered new exit (range 16) 510 | -10/Materials | Discovered new exit (range 9) 691 | -10/Materials | Entered Mines 695 | -10/Mines | Met a Derelict bent on vengeance 884 | -10/Mines | Discovered new exit (range 8) 895 | -10/Mines | Entered Materials 895 | -9/Materials | Evolved 2 slots: Propulsion x2 1165 | -9/Materials | Lost 9 parts (2p4n1u2w) 1222 | -9/Materials | Repaired Mace 1437 | -9/Materials | Build established: Scavenger-Mutant 1694 | -9/Materials | Core integrity fell below 50% 1786 | -9/Materials | Lost 3 parts (2n1u) 1900 | -9/Materials | Discovered new exit (range 12) 1916 | -9/Materials | Entered another Materials area 1916 | -8/Materials | Evolved 2 slots: Power x1, Propulsion x1 2025 | -8/Materials | Build established: Mutant 2315 | -8/Materials | Discovered new exit (range 4) 2320 | -8/Materials | Entered Factory 2320 | -7/Factory | Evolved 2 slots: Utility x2 2389 | -7/Factory | Discovered new exit (range 9) 2391 | -7/Factory | Entered another Factory area 2391 | -6/Factory | Evolved 2 slots: Propulsion x1, Utility x1 2432 | -6/Factory | Repaired Flight Unit 2626 | -6/Factory | Build established: Sprinter 2724 | -6/Factory | Identified exit to Lower Caves 2784 | -6/Factory | Lost 3 parts (1p1n1u) 2942 | -6/Factory | Entered Lower Caves 2951 | -6/Lower Caves | Learned Armory security intel 3014 | -6/Lower Caves | Encountered a Warlord checkpoint 3048 | -6/Lower Caves | Build established: Hacker-Sprinter 3124 | -6/Lower Caves | Learned location of Extension (-4) 3147 | -6/Lower Caves | Attacked by a faux Warlord 3277 | -6/Lower Caves | Lost 4 parts (1p3n) 3289 | -6/Lower Caves | Discovered new exit (range 13) 3295 | -6/Lower Caves | Entered another Lower Caves area 3315 | -6/Lower Caves | Attracted the attention of an 0b10 checkpoint 3366 | -6/Lower Caves | Identified exit to Data Miner 3543 | -6/Lower Caves | Discovered new exit (range 6) 3545 | -6/Lower Caves | Entered Factory 3545 | -5/Factory | Evolved 2 slots: Utility x2 3562 | -5/Factory | Identified exit to DSF 3562 | -5/Factory | Entered DSF 3582 | -5/DSF | Additional patrols routed to DSF 3589 | -5/DSF | Discovered new exit (range 14) 3593 | -5/DSF | Entered Factory 3593 | -4/Factory | Evolved 2 slots: Propulsion x1, Utility x1 3594 | -4/Factory | Identified exit to Extension 3829 | -4/Factory | Fabricated Impulse Thruster? 3856 | -4/Factory | Discovered new exit (range 14) 3862 | -4/Factory | Identified exit to Research 3862 | -4/Factory | Entered Research 3862 | -3/Research | Evolved 2 slots: Propulsion x1, Utility x1 4030 | -3/Research | Spotted B-86 Titan 4064 | -3/Research | Spotted B-86 Titan 4113 | -3/Research | Lost 3 parts (1p1n1u) 4150 | -3/Research | Core integrity fell below 50% 4154 | -3/Research | Core integrity fell below 20% 4155 | -3/Research | Destroyed by H-71 Marshal with Heavy Mass Driver Last Messages --------------- 04147_ Slug penetrates Wall. 04148_ Imp. Proton Missile Launcher destroyed. 04148_ S-43 Plague destroyed. 04149_ Dropped Coolant Injector. 04150_ S-43 Plague misfires. 04150_ Imp. Hacking Suite destroyed. 04150_ U-05 Engineer knocked back. 04151_ Imp. Signal Interpreter destroyed. 04151_ Knocked back. 04151_ U-05 Engineer lays Concrete. 04151_ Slug penetrates Wall. 04152_ U-05 Engineer destroyed. 04153_ Slug penetrates Wall. 04153_ Penetrated by Slug. 04153_ Slug penetrates Y-72 Warden. 04153_ Imp. Hacking Suite destroyed. 04155_ Acquired 7 matter. 04155_ Penetrated by Slug. 04155_ Slug penetrates Y-72 Warden. 04155_ Penetrated by Slug. Map ----- +----------------------------------------------------+ | ?????????????????????????????????? ????#???####### | | ?????????????????????????????????? ????????# | | ?????????????????????????????????# #???????# | | ?????????????????????????????????# #???????# | | ?????????????????????????????????# #?####### | | ?????????????????????????????????# #?# ## | | ?????????????????????????????????# #?# ## | | ?????????????????????????????????# #?# ## | | ?????????????????????????????????# #?# ## | | ?????????????????????????????????# #?# ## | | ?????????????????????????????????# #?# ## | | ?????????????????????????????????# #?# ## | | ????????????????????????######?### ### ## | | ????????????????????????# # # ###+#### | | ????????????????????????# ! # "##+"### #??? | | ????????????????????????# +% #??? | | ??????########?########?# # #??? | | ??????# ??# #?# # #?#? | | ??????# ??# !#?# ?# "" # | | ??????? ???# #?######?# ""F"" " | | ??????# ???# % #????????# "" "" # | | ??????# ????# =% #????????# "### | | ??????? ????# #????????# #? | | ?########+######;%#/g########### k A #? | | ?# BBss! H t ###? | | ?# YgBBsh% %@ % H #? | | ?# Y gh Y #? | | # ####+###;;# ########;###+## | | # # ###?????? #### ###k ## | | + # ! !!!#???????? #??# #?# #? | | # #! !!!#???????# #??# #?# ####+###? | | ## # ! !!!#???????# #??? #?# #???????? | | # ######"####???????# #??? #?# #???????? | | # #???????# ! #??? #?# #???????? | | + #???????########??? #??? #???????? | | # = #?????????????????? #?????????????? | | # "" #?????????????????? #?????????????? | | ?## """ #?????????????????? #?????????????? | | ??# T" ##????????????????????????????????? | | ??# """ "#????????????????????????????????? | | ??# "" ###########???????????????????????? | | ??# # #???????????????????????? | | ??# # #???????????????????????? | | ### # = #???????????????????????? | | # #???????????????????????? | | + #???????????????????????? | | # "" "" #???????????????????????? | | ##+####### # ""T"" #???????????????????????? | | ????####### """ #???????????????????????? | | #????????###########???????????????????????? | +----------------------------------------------------+ Best States ------------- Heat Dissipation 65 Coolant Potential 65 Energy Generation 35 Energy Capacity 360 Matter Stores 300 Matter Capacity 300 Sight Range 20 Robot Scan Range 15 Terrain Scan Range 16 Terrain Scan Density 10 Additional Mass Support 6 Base Temperature (-) 100 Evasion (%) 65 Recoil Reduction 3 Offensive Hacking 46 Item Schematics ----------------- Hacking Suite | -9/Materials | Scanalyzed Impulse Thruster | -4/Factory | Scanalyzed Robot Schematics ------------------ None Fabricated ------------ Impulse Thruster | x2 | -4/Factory Alien Tech Used ----------------- None Achievements -------------- Part-time Excavator Challenges ------------ None Game ------ Seed PlatingCargoEngine Manual? 0 Play Time 01:42:45 Cumulative 56.7 hours Start 2023.08.27 @ 09:00:18 End 2023.08.28 @ 23:27:05 Sessions 5 Manual Loads 0 Difficulty Rogue Special Mode None Game No. 71 Rogue 55 Adventurer 9 Explorer 7 Win Type - Total 4 Types 4/0/0/0/0/0/0/0/0 Lore% 16 Gallery% 40 Achievement% 30 Wizard Run 0 Options --------- ASCII 0 Keyboard 0 Movement Mouse Keybinds 0 Fullscreen 1 Font 32/Terminus Map View 63x52 Tactical HUD 1 Map Filters NONE Filters NONE Steam 1 RUN: 23e487d9-41a1-4224-90ae-4ad894a169a8